{"text_format":"1","workbook":"xlsx","n_sheets":1,"sheets":["Mittelwerte"],"not_rendered":{"charts":0,"images":0,"macros":1,"external_links":4,"defined_names":2,"comments":0,"pivot_tables":0},"unopened":[],"bounds":{"document_bytes":16777216,"sheet_cells":100000,"rows_first":2000,"rows_last":500,"rows_between":2000,"halvings":0,"cell_chars":16384,"cell_head_chars":4096},"cells_cut":0,"cells_raw":0,"read":"whole","date_system":"1900"}

{"sheet":"Mittelwerte","index":0,"n_rows":153,"n_cols":55,"rows_kept":153,"cut":false,"hidden":false,"merged":[]}
["Mittelwert  3 Kitas",null,null,null,null,null,null,{"$f":"[3]Alte!$C$3","v":"Alte"},null,null,null,null,null,null,{"$f":"[3]Neue!$C$3","v":"Neue"},null,null,null,null,null,null,{"$f":"[3]Strolche!$C$3","v":"Strolche"},null,null,null,null,null,null,"Reserve1",null,null,null,null,null,null,"Reserve2"]
["Hier keine Formeln verändern!",null,null,null,null,null,null,"H2) "]
["Menü 2",1,2,3,4,null,null,"Menü 1",1,2,3,4,{"$f":"#REF!","v":{"$error":"#REF!"}},null,"Menü 1",1,2,3,4,{"$f":"#REF!","v":{"$error":"#REF!"}},null,"Menü 1",1,2,3,4,{"$f":"#REF!","v":{"$error":"#REF!"}},null,"Menü 1",1,2,3,4,{"$f":"#REF!","v":{"$error":"#REF!"}},null,"Menü 1",1,2,3,4,{"$f":"#REF!","v":{"$error":"#REF!"}},"2025-03-19"]
["Suppe heiß / kalt",{"$f":"AVERAGE(I4,P4,W4,AD4,AK4)","v":120},126,0,0,null,null,"Suppe heiß / kalt",120,150,null,null,null,null,"Suppe heiß / kalt",120,120,0,0,null,null,"Suppe heiß / kalt",120,120,null,null,null,null,"Suppe heiß / kalt",120,120,null,null,null,null,"Suppe heiß / kalt",120,120]
["Vorspeise  Stck / Gramm",1,100,{"$error":"#DIV/0!"},1.5,null,null,"Vorspeise  Stck / Gramm",1,100,null,1.5,null,null,"Vorspeise  Stck / Gramm",1,100,null,null,null,null,"Vorspeise  Stck / Gramm",1,100,null,null,null,null,"Vorspeise  Stck / Gramm",1,100,null,null,null,null,"Vorspeise  Stck / Gramm",1,100]
["Eintopf Gerne / Ungerne",240,350,242,{"$error":"#DIV/0!"},null,null,"Eintopf Gerne / Ungerne",240,350,150,null,null,null,"Eintopf Gerne / Ungerne",250,350,150,null,null,null,"Eintopf Gerne / Ungerne",240,350,380,null,null,null,"Eintopf Gerne / Ungerne",230,350,150,null,null,null,"Eintopf Gerne / Ungerne",240,350,380]
["Fleisch / Ragout",1,116,146,1.5,null,null,"Fleisch / Ragout",1,120,150,1.5,null,null,"Fleisch / Ragout",1,120,140,1.5,null,null,"Fleisch / Ragout",1,120,150,1.5,null,null,"Fleisch / Ragout",1,100,140,1.5,null,null,"Fleisch / Ragout",1,120,150,1.5]
["Soße / Soße Einlage",60,114,158,0,null,null,"Soße / Soße Einlage",60,110,140,0,null,null,"Soße / Soße Einlage",60,120,150,0,null,null,"Soße / Soße Einlage",60,120,170,0,null,null,"Soße / Soße Einlage",60,100,160,0,null,null,"Soße / Soße Einlage",60,120,170,0]
["Gemüse / Gemüse Soße",102,122,140,0,null,null,"Gemüse / Gemüse Soße",110,120,140,0,null,null,"Gemüse / Gemüse Soße",110,120,140,0,null,null,"Gemüse / Gemüse Soße",100,130,140,0,null,null,"Gemüse / Gemüse Soße",90,110,140,0,null,null,"Gemüse / Gemüse Soße",100,130,140,0]
["Blatt, Misch, Gurke",35,49,76,0,null,null,"Blatt, Misch, Gurke",40,40,80,0,null,null,"Blatt, Misch, Gurke",45,55,80,0,null,null,"Blatt, Misch, Gurke",30,50,70,0,null,null,"Blatt, Misch, Gurke",30,50,80,0,null,null,"Blatt, Misch, Gurke",30,50,70,0,null,"10 g. ↓"]
["Salat-Dressing",33,44,{"$error":"#DIV/0!"},{"$error":"#DIV/0!"},null,null,"Salat-Dressing",35,40,null,null,null,null,"Salat-Dressing",35,50,null,null,null,null,"Salat-Dressing",30,40,null,null,null,null,"Salat-Dressing",35,50,null,null,null,null,"Salat-Dressing",30,40,null,null,null,"10 g.↓"]
["Kartoffeln / Püree",140,202,208,3.4,null,null,"Kartoffeln / Püree",150,200,200,3,null,null,"Kartoffeln / Püree",160,200,200,3,null,null,"Kartoffeln / Püree",130,210,220,4,null,null,"Kartoffeln / Püree",130,190,200,3,null,null,"Kartoffeln / Püree",130,210,220,4,null,"Püree 20 g/Pers. é"]
["Nudeln / Reis",179,186,200,0,null,null,"Nudeln / Reis",180,190,200,0,null,null,"Nudeln / Reis",190,200,200,0,null,null,"Nudeln / Reis",180,190,200,0,null,null,"Nudeln / Reis",165,160,200,0,null,null,"Nudeln / Reis",180,190,200,0]
["Nachtisch / Eis",1,100,80,150,null,null,"Nachtisch / Eis",1,100,80,150,null,null,"Nachtisch / Eis",1,100,80,150,null,null,"Nachtisch / Eis",1,100,80,150,null,null,"Nachtisch / Eis",1,100,80,150,null,null,"Nachtisch / Eis",1,100,80,150]
["Nachtischsoße",30,{"$error":"#DIV/0!"},{"$error":"#DIV/0!"},10,null,null,"Nachtischsoße",30,null,null,10,null,null,"Nachtischsoße",30,null,null,10,null,null,"Nachtischsoße",30,null,null,10,null,null,"Nachtischsoße",30,null,null,10,null,null,"Nachtischsoße",30,null,null,10]
[null,{"$error":"#DIV/0!"},{"$error":"#DIV/0!"},{"$error":"#DIV/0!"},{"$error":"#DIV/0!"}]
[]
["Hier keine Formeln verändern!",null,null,null,null,null,null,{"$f":"H1","v":"Alte"},null,null,null,null,null,null,{"$f":"O1","v":"Neue"},null,null,null,null,null,null,{"$f":"V1","v":"Strolche"},null,null,null,null,null,null,{"$f":"AC1","v":"Reserve1"},null,null,null,null,null,null,{"$f":"AJ1","v":"Reserve2"}]
[]
["Menü 2",1,2,3,4,null,null,"Menü 2",1,2,3,4,{"$f":"M3","v":{"$error":"#REF!"}},null,"Menü 2",1,2,3,4,{"$f":"T3","v":{"$error":"#REF!"}},null,"Menü 2",1,2,3,4,{"$f":"AA3","v":{"$error":"#REF!"}},null,"Menü 2",1,2,3,4,{"$f":"AH3","v":{"$error":"#REF!"}},null,"Menü 2",1,2,3,4,{"$f":"AO3","v":{"$error":"#REF!"}}]
[{"$f":"A4","v":"Suppe heiß / kalt"},{"$f":"AVERAGE(I21,P21,W21,AD21,AK21)","v":120},120,{"$error":"#DIV/0!"},{"$error":"#DIV/0!"},null,null,{"$f":"H4","v":"Suppe heiß / kalt"},120,120,null,null,null,null,{"$f":"O4","v":"Suppe heiß / kalt"},120,120,null,null,null,null,{"$f":"V4","v":"Suppe heiß / kalt"},120,120,null,null,null,null,{"$f":"AC4","v":"Suppe heiß / kalt"},120,120,null,null,null,null,{"$f":"AJ4","v":"Suppe heiß / kalt"},120,120]
["Vorspeise  Stck / Gramm",1,100,{"$error":"#DIV/0!"},{"$error":"#DIV/0!"},null,null,"Vorspeise  Stck / Gramm",1,100,null,null,null,null,"Vorspeise  Stck / Gramm",1,100,null,null,null,null,"Vorspeise  Stck / Gramm",1,100,null,null,null,null,"Vorspeise  Stck / Gramm",1,100,null,null,null,null,"Vorspeise  Stck / Gramm",1,100]
["Eintopf Gerne / Ungerne",240,350,242,{"$error":"#DIV/0!"},null,null,"Eintopf Gerne / Ungerne",240,350,150,null,null,null,"Eintopf Gerne / Ungerne",250,350,150,null,null,null,"Eintopf Gerne / Ungerne",240,350,380,null,null,null,"Eintopf Gerne / Ungerne",230,350,150,null,null,null,"Eintopf Gerne / Ungerne",240,350,380]
["Fleisch / Ragout",1,124,146,1.5,null,null,"Fleisch / Ragout",1,120,150,1.5,null,null,"Fleisch / Ragout",1,120,140,1.5,null,null,"Fleisch / Ragout",1,120,150,1.5,null,null,"Fleisch / Ragout",1,140,140,1.5,null,null,"Fleisch / Ragout",1,120,150,1.5]
["Soße / Soße Einlage",62,118,158,0,null,null,"Soße / Soße Einlage",60,110,140,0,null,null,"Soße / Soße Einlage",60,120,150,0,null,null,"Soße / Soße Einlage",60,120,170,0,null,null,"Soße / Soße Einlage",70,120,160,0,null,null,"Soße / Soße Einlage",60,120,170,0]
["Gemüse / Gemüse Soße",102,122,140,0,null,null,"Gemüse / Gemüse Soße",110,120,140,0,null,null,"Gemüse / Gemüse Soße",110,120,140,0,null,null,"Gemüse / Gemüse Soße",100,130,140,0,null,null,"Gemüse / Gemüse Soße",90,110,140,0,null,null,"Gemüse / Gemüse Soße",100,130,140,0]
["Blatt, Misch, Gurke",35,49,76,0,null,null,"Blatt, Misch, Gurke",40,40,80,0,null,null,"Blatt, Misch, Gurke",45,55,80,0,null,null,"Blatt, Misch, Gurke",30,50,70,0,null,null,"Blatt, Misch, Gurke",30,50,80,0,null,null,"Blatt, Misch, Gurke",30,50,70,0]
["Salat-Dressing",33,44,{"$error":"#DIV/0!"},{"$error":"#DIV/0!"},null,null,"Salat-Dressing",35,40,null,null,null,null,"Salat-Dressing",35,50,null,null,null,null,"Salat-Dressing",30,40,null,null,null,null,"Salat-Dressing",35,50,null,null,null,null,"Salat-Dressing",30,40]
["Kartoffeln / Püree",144,200,208,3.4,null,null,"Kartoffeln / Püree",150,200,200,3,null,null,"Kartoffeln / Püree",160,200,200,3,null,null,"Kartoffeln / Püree",130,210,220,4,null,null,"Kartoffeln / Püree",150,180,200,3,null,null,"Kartoffeln / Püree",130,210,220,4]
["Nudeln / Reis",179,186,200,0,null,null,"Nudeln / Reis",180,190,200,0,null,null,"Nudeln / Reis",190,200,200,0,null,null,"Nudeln / Reis",180,190,200,0,null,null,"Nudeln / Reis",165,160,200,0,null,null,"Nudeln / Reis",180,190,200,0]
["Nachtisch / Eis",1,{"$f":"AVERAGE(J31,Q31,X31,AE31,AL31)","v":100},{"$f":"AVERAGE(K31,R31,Y31,AF31,AM31)","v":80},150,null,null,"Nachtisch / Eis",1,100,80,150,null,null,"Nachtisch / Eis",1,100,80,150,null,null,"Nachtisch / Eis",1,100,80,150,null,null,"Nachtisch / Eis",1,100,80,150,null,null,"Nachtisch / Eis",1,100,80,150]
["Nachtischsoße",30,{"$error":"#DIV/0!"},{"$error":"#DIV/0!"},10,null,null,"Nachtischsoße",30,null,null,10,null,null,"Nachtischsoße",30,null,null,10,null,null,"Nachtischsoße",30,null,null,10,null,null,"Nachtischsoße",30,null,null,10,null,null,"Nachtischsoße",30,null,null,10]
[0,{"$error":"#DIV/0!"},{"$error":"#DIV/0!"},{"$error":"#DIV/0!"},{"$error":"#DIV/0!"},null,null,0,null,null,null,null,null,null,0,null,null,null,null,null,null,0,null,null,null,null,null,null,0,null,null,null,null,null,null,0]
[]
["Hier keine Formeln verändern!",null,null,null,null,null,null,{"$f":"H1","v":"Alte"},null,null,null,null,null,null,{"$f":"O1","v":"Neue"},null,null,null,null,null,null,{"$f":"V18","v":"Strolche"},null,null,null,null,null,null,{"$f":"AC18","v":"Reserve1"},null,null,null,null,null,null,{"$f":"AJ1","v":"Reserve2"}]
[]
["Vegetarisch",1,2,3,4,null,null,"Vegetarisch",1,2,3,4,{"$f":"M3","v":{"$error":"#REF!"}},null,"Vegetarisch",1,2,3,4,{"$f":"T3","v":{"$error":"#REF!"}},null,"Vegetarisch",1,2,3,4,{"$f":"AA3","v":{"$error":"#REF!"}},null,"Vegetarisch",1,2,3,4,{"$f":"AH3","v":{"$error":"#REF!"}},null,"Vegetarisch",1,2,3,4,{"$f":"AO3","v":{"$error":"#REF!"}}]
[{"$f":"A21","v":"Suppe heiß / kalt"},{"$f":"AVERAGE(I38,P38,W38,AD38,AK38)","v":120},120,{"$error":"#DIV/0!"},{"$error":"#DIV/0!"},null,null,{"$f":"H21","v":"Suppe heiß / kalt"},120,120,null,null,null,null,{"$f":"O21","v":"Suppe heiß / kalt"},120,120,null,null,null,null,{"$f":"V21","v":"Suppe heiß / kalt"},120,120,null,null,null,null,{"$f":"AC21","v":"Suppe heiß / kalt"},120,120,null,null,null,null,{"$f":"AJ21","v":"Suppe heiß / kalt"},120,120]
["Vorspeise  Stck / Gramm",1,100,{"$error":"#DIV/0!"},{"$error":"#DIV/0!"},null,null,"Vorspeise  Stck / Gramm",1,100,null,null,null,null,"Vorspeise  Stck / Gramm",1,100,null,null,null,null,"Vorspeise  Stck / Gramm",1,100,null,null,null,null,"Vorspeise  Stck / Gramm",1,100,null,null,null,null,"Vorspeise  Stck / Gramm",1,100]
["Eintopf Gerne / Ungerne",240,350,242,{"$error":"#DIV/0!"},null,null,"Eintopf Gerne / Ungerne",240,350,150,null,null,null,"Eintopf Gerne / Ungerne",250,350,150,null,null,null,"Eintopf Gerne / Ungerne",240,350,380,null,null,null,"Eintopf Gerne / Ungerne",230,350,150,null,null,null,"Eintopf Gerne / Ungerne",240,350,380]
["Fleisch / Ragout",1,116,146,1.5,null,null,"Fleisch / Ragout",1,120,150,1.5,null,null,"Fleisch / Ragout",1,120,140,1.5,null,null,"Fleisch / Ragout",1,120,150,1.5,null,null,"Fleisch / Ragout",1,100,140,1.5,null,null,"Fleisch / Ragout",1,120,150,1.5]
["Soße / Soße Einlage",62,118,158,0,null,null,"Soße / Soße Einlage",60,110,140,0,null,null,"Soße / Soße Einlage",60,120,150,0,null,null,"Soße / Soße Einlage",60,120,170,0,null,null,"Soße / Soße Einlage",70,120,160,0,null,null,"Soße / Soße Einlage",60,120,170,0]
["Gemüse / Gemüse Soße",102,122,140,0,null,null,"Gemüse / Gemüse Soße",110,120,140,0,null,null,"Gemüse / Gemüse Soße",110,120,140,0,null,null,"Gemüse / Gemüse Soße",100,130,140,0,null,null,"Gemüse / Gemüse Soße",90,110,140,0,null,null,"Gemüse / Gemüse Soße",100,130,140,0]
["Blatt, Misch, Gurke",35,49,76,0,null,null,"Blatt, Misch, Gurke",40,40,80,0,null,null,"Blatt, Misch, Gurke",45,55,80,0,null,null,"Blatt, Misch, Gurke",30,50,70,0,null,null,"Blatt, Misch, Gurke",30,50,80,0,null,null,"Blatt, Misch, Gurke",30,50,70,0]
["Salat-Dressing",33,44,{"$error":"#DIV/0!"},{"$error":"#DIV/0!"},null,null,"Salat-Dressing",35,40,null,null,null,null,"Salat-Dressing",35,50,null,null,null,null,"Salat-Dressing",30,40,null,null,null,null,"Salat-Dressing",35,50,null,null,null,null,"Salat-Dressing",30,40]
["Kartoffeln / Püree",140,202,208,3.4,null,null,"Kartoffeln / Püree",150,200,200,3,null,null,"Kartoffeln / Püree",160,200,200,3,null,null,"Kartoffeln / Püree",130,210,220,4,null,null,"Kartoffeln / Püree",130,190,200,3,null,null,"Kartoffeln / Püree",130,210,220,4]
["Nudeln / Reis",179,186,200,0,null,null,"Nudeln / Reis",180,190,200,0,null,null,"Nudeln / Reis",190,200,200,0,null,null,"Nudeln / Reis",180,190,200,0,null,null,"Nudeln / Reis",165,160,200,0,null,null,"Nudeln / Reis",180,190,200,0]
["Nachtisch / Eis",1,100,80,150,null,null,"Nachtisch / Eis",1,100,80,150,null,null,"Nachtisch / Eis",1,100,80,150,null,null,"Nachtisch / Eis",1,100,80,150,null,null,"Nachtisch / Eis",1,100,80,150,null,null,"Nachtisch / Eis",1,100,80,150]
["Nachtischsoße",30,{"$error":"#DIV/0!"},{"$error":"#DIV/0!"},10,null,null,"Nachtischsoße",30,null,null,10,null,null,"Nachtischsoße",30,null,null,10,null,null,"Nachtischsoße",30,null,null,10,null,null,"Nachtischsoße",30,null,null,10,null,null,"Nachtischsoße",30,null,null,10]
[0,{"$error":"#DIV/0!"},{"$error":"#DIV/0!"},{"$error":"#DIV/0!"},{"$error":"#DIV/0!"},null,null,0,null,null,null,null,null,null,0,null,null,null,null,null,null,0,null,null,null,null,null,null,0,null,null,null,null,null,null,0]
[]
[]
["Mittelwert  7 OGS",null,null,null,null,null,null,{"$f":"[3]Liedbach!$C$3","v":"Liedbach"},null,null,null,null,null,null,{"$f":"[3]OGS1!$C$3","v":"OGS1"},null,null,null,null,null,null,{"$f":"[3]OGS2!$C$3","v":"OGS2"},null,null,null,null,null,null,{"$f":"[3]OGS3!$C$3","v":"OGS3"},null,null,null,null,null,null,{"$f":"[3]OGS4!$C$3","v":"OGS4"},null,null,null,null,null,null,{"$f":"[4]Lünern!C3","v":"Lünern"},null,null,null,null,null,null,{"$f":"[4]Lünern2!C3","v":"Lünern2"}]
["Hier keine Formeln verändern!"]
["Menü 2",1,2,3,4,null,null,1,1,2,3,4,{"$f":"#REF!","v":{"$error":"#REF!"}},null,"Menü 1",1,2,3,4,{"$f":"C45","v":"1900-02-13"},null,"Menü 1",1,2,3,4,{"$f":"J45","v":"1900-02-09"},null,"Menü 1",1,2,3,4,{"$f":"Q45","v":"1900-02-19"},null,"Menü 1",1,2,3,4,{"$f":"#REF!","v":{"$error":"#REF!"}},null,"Menü 1",1,2,3,4,{"$f":"X45","v":"1900-02-09"},null,"Menü 1",1,2,3,4,{"$f":"AE45","v":"1900-02-19"}]
["Suppe heiß / kalt",{"$f":"AVERAGE(P56,W56,AD56,AR56,AY56)","v":120},{"$f":"AVERAGE(Q56,X56,AE56,AS56,AZ56)","v":120},{"$f":"AVERAGE(R56,Y56,AF56,AT56,BA56)","v":600},{"$f":"AVERAGE(S56,Z56,AG56,AU56,BB56)","v":{"$error":"#DIV/0!"}},null,null,"Suppe heiß / kalt",120,120,600,null,null,null,"Suppe heiß / kalt",120,120,600,null,null,null,"Suppe heiß / kalt",120,120,null,null,null,null,"Suppe heiß / kalt",120,120,null,null,null,null,"Suppe heiß / kalt",120,120,null,null,null,null,"Suppe heiß / kalt",120,120,null,null,null,null,"Suppe heiß / kalt",120,120]
["Vorspeise  Stck / Gramm",1,100,{"$error":"#DIV/0!"},{"$error":"#DIV/0!"},null,null,"Vorspeise  Stck / Gramm",1,100,null,null,null,null,"Vorspeise  Stck / Gramm",1,100,null,null,null,null,"Vorspeise  Stck / Gramm",1,100,null,null,null,null,"Vorspeise  Stck / Gramm",1,100,null,null,null,null,"Vorspeise  Stck / Gramm",1,100,null,null,null,null,"Vorspeise  Stck / Gramm",1,100,null,null,null,null,"Vorspeise  Stck / Gramm",1,100]
["Eintopf Gerne / Ungerne",272,316,210,2,null,null,"Eintopf Gerne / Ungerne",220,210,250,2,null,null,"Eintopf Gerne / Ungerne",220,210,250,2,null,null,"Eintopf Gerne / Ungerne",240,320,350,2,null,null,"Eintopf Gerne / Ungerne",280,350,150,2,null,null,"Eintopf Gerne / Ungerne",240,350,380,2,null,null,"Eintopf Gerne / Ungerne",310,350,150,2,null,null,"Eintopf Gerne / Ungerne",310,350,150,2]
["Fleisch / Ragout",1,122,140,1.5,null,null,"Fleisch / Ragout",1,100,140,1.5,null,null,"Fleisch / Ragout",1,100,140,1.5,null,null,"Fleisch / Ragout",1,100,140,1.5,null,null,"Fleisch / Ragout",1,110,140,1.5,null,null,"Fleisch / Ragout",1,120,150,1.5,null,null,"Fleisch / Ragout",1,150,140,1.5,null,null,"Fleisch / Ragout",1,150,140,1.5]
["Soße / Soße Einlage",72,117,150,0,null,null,"Soße / Soße Einlage",60,125,150,0,null,null,"Soße / Soße Einlage",60,125,150,0,null,null,"Soße / Soße Einlage",60,120,150,0,null,null,"Soße / Soße Einlage",60,120,150,0,null,null,"Soße / Soße Einlage",60,120,170,0,null,null,"Soße / Soße Einlage",90,110,150,0,null,null,"Soße / Soße Einlage",90,110,150,0]
["Gemüse / Gemüse Soße",104,120,140,0,null,null,"Gemüse / Gemüse Soße",100,110,140,0,null,null,"Gemüse / Gemüse Soße",100,110,140,0,null,null,"Gemüse / Gemüse Soße",100,110,140,0,null,null,"Gemüse / Gemüse Soße",100,120,140,0,null,null,"Gemüse / Gemüse Soße",100,130,140,0,null,null,"Gemüse / Gemüse Soße",110,130,140,0,null,null,"Gemüse / Gemüse Soße",110,130,140,0]
["Blatt, Misch, Gurke",34,50,80,0,null,null,"Blatt, Misch, Gurke",40,50,80,0,null,null,"Blatt, Misch, Gurke",40,50,80,0,null,null,"Blatt, Misch, Gurke",30,50,80,0,null,null,"Blatt, Misch, Gurke",40,50,80,0,null,null,"Blatt, Misch, Gurke",30,50,70,0,null,null,"Blatt, Misch, Gurke",30,50,80,0,null,null,"Blatt, Misch, Gurke",30,50,80,0]
["Salat-Dressing",30,50,{"$error":"#DIV/0!"},{"$error":"#DIV/0!"},null,null,"Salat-Dressing",30,50,null,null,null,null,"Salat-Dressing",30,50,null,null,null,null,"Salat-Dressing",30,50,null,null,null,null,"Salat-Dressing",30,50,null,null,null,null,"Salat-Dressing",30,40,null,null,null,null,"Salat-Dressing",30,50,null,null,null,null,"Salat-Dressing",30,50]
["Kartoffeln / Püree",148,198,200,3.4,null,null,"Kartoffeln / Püree",130,200,200,3,null,null,"Kartoffeln / Püree",130,200,200,3,null,null,"Kartoffeln / Püree",130,190,200,3,null,null,"Kartoffeln / Püree",160,200,200,3,null,null,"Kartoffeln / Püree",130,210,220,4,null,null,"Kartoffeln / Püree",160,200,200,4,null,null,"Kartoffeln / Püree",160,200,200,4]
["Nudeln / Reis",163,162,196,0,null,null,"Nudeln / Reis",150,140,180,0,null,null,"Nudeln / Reis",150,140,180,0,null,null,"Nudeln / Reis",165,170,200,0,null,null,"Nudeln / Reis",160,160,200,0,null,null,"Nudeln / Reis",180,190,200,0,null,null,"Nudeln / Reis",170,170,200,0,null,null,"Nudeln / Reis",170,170,200,0]
["Nachtisch / Eis",1,110,90,1,null,null,"Nachtisch / Eis",1,100,75,1,null,null,"Nachtisch / Eis",1,100,75,1,null,null,"Nachtisch / Eis",1,100,75,1,null,null,"Nachtisch / Eis",1,130,100,1,null,null,"Nachtisch / Eis",1,100,80,1,null,null,"Nachtisch / Eis",1,110,100,1,null,null,"Nachtisch / Eis",1,110,100,1]
["Nachtischsoße",30,{"$error":"#DIV/0!"},{"$error":"#DIV/0!"},10,null,null,"Nachtischsoße",30,null,null,10,null,null,"Nachtischsoße",30,null,null,10,null,null,"Nachtischsoße",30,null,null,10,null,null,"Nachtischsoße",30,null,null,10,null,null,"Nachtischsoße",30,null,null,10,null,null,"Nachtischsoße",30,null,null,10,null,null,"Nachtischsoße",30,null,null,10]
[null,{"$error":"#DIV/0!"},{"$error":"#DIV/0!"},{"$error":"#DIV/0!"},{"$error":"#DIV/0!"}]
[]
["Hier keine Formeln verändern!",null,null,null,null,null,null,{"$f":"H53","v":"Liedbach"},null,null,null,null,null,null,{"$f":"O53","v":"OGS1"},null,null,null,null,null,null,{"$f":"V53","v":"OGS2"},null,null,null,null,null,null,{"$f":"AC53","v":"OGS3"},null,null,null,null,null,null,{"$f":"AJ53","v":"OGS4"},null,null,null,null,null,null,"Lünern",null,null,null,null,null,null,"Lünern2"]
[]
["Menü 2",1,2,3,4,null,null,"Menü 2",1,2,3,4,{"$f":"M55","v":{"$error":"#REF!"}},null,"Menü 2",1,2,3,4,{"$f":"T55","v":"1900-02-13"},null,"Menü 2",1,2,3,4,{"$f":"AA55","v":"1900-02-09"},null,"Menü 2",1,2,3,4,{"$f":"AH55","v":"1900-02-19"},null,"Menü 2",1,2,3,4,{"$f":"AO55","v":{"$error":"#REF!"}},null,"Menü 2",1,2,3,4,{"$f":"AV55","v":"1900-02-09"},null,"Menü 2",1,2,3,4,{"$f":"BC55","v":"1900-02-19"}]
[{"$f":"A56","v":"Suppe heiß / kalt"},{"$f":"AVERAGE(P73,W73,AD73,AR73,AY73)","v":120},{"$f":"AVERAGE(Q73,X73,AE73,AS73,AZ73)","v":120},{"$f":"AVERAGE(R73,Y73,AF73,AT73,BA73)","v":{"$error":"#DIV/0!"}},{"$f":"AVERAGE(S73,Z73,AG73,AU73,BB73)","v":{"$error":"#DIV/0!"}},null,null,{"$f":"H56","v":"Suppe heiß / kalt"},120,120,null,null,null,null,{"$f":"O56","v":"Suppe heiß / kalt"},120,120,null,null,null,null,{"$f":"V56","v":"Suppe heiß / kalt"},120,120,null,null,null,null,{"$f":"AC56","v":"Suppe heiß / kalt"},120,120,null,null,null,null,{"$f":"AJ56","v":"Suppe heiß / kalt"},120,120,null,null,null,null,{"$f":"AQ56","v":"Suppe heiß / kalt"},120,120,null,null,null,null,{"$f":"AX56","v":"Suppe heiß / kalt"},120,120]
["Vorspeise  Stck / Gramm",1,100,{"$error":"#DIV/0!"},{"$error":"#DIV/0!"},null,null,"Vorspeise  Stck / Gramm",1,100,null,null,null,null,"Vorspeise  Stck / Gramm",1,100,null,null,null,null,"Vorspeise  Stck / Gramm",1,100,null,null,null,null,"Vorspeise  Stck / Gramm",1,100,null,null,null,null,"Vorspeise  Stck / Gramm",1,100,null,null,null,null,"Vorspeise  Stck / Gramm",1,100,null,null,null,null,"Vorspeise  Stck / Gramm",1,100]
["Eintopf Gerne / Ungerne",248,304,290,{"$error":"#DIV/0!"},null,null,"Eintopf Gerne / Ungerne",220,210,250,null,null,null,"Eintopf Gerne / Ungerne",220,210,250,null,null,null,"Eintopf Gerne / Ungerne",240,320,350,null,null,null,"Eintopf Gerne / Ungerne",280,350,150,null,null,null,"Eintopf Gerne / Ungerne",240,350,380,null,null,null,"Eintopf Gerne / Ungerne",250,320,350,null,null,null,"Eintopf Gerne / Ungerne",250,320,350]
["Fleisch / Ragout",1,150,140,1.5,null,null,"Fleisch / Ragout",1,150,140,1.5,null,null,"Fleisch / Ragout",1,150,140,1.5,null,null,"Fleisch / Ragout",1,150,140,1.5,null,null,"Fleisch / Ragout",1,150,140,1.5,null,null,"Fleisch / Ragout",1,120,150,1.5,null,null,"Fleisch / Ragout",1,150,140,1.5,null,null,"Fleisch / Ragout",1,150,140,1.5]
["Soße / Soße Einlage",78,117,150,0,null,null,"Soße / Soße Einlage",70,125,150,0,null,null,"Soße / Soße Einlage",70,125,150,0,null,null,"Soße / Soße Einlage",70,120,150,0,null,null,"Soße / Soße Einlage",70,120,150,0,null,null,"Soße / Soße Einlage",60,120,170,0,null,null,"Soße / Soße Einlage",90,110,150,0,null,null,"Soße / Soße Einlage",90,110,150,0]
["Gemüse / Gemüse Soße",100,112,140,0,null,null,"Gemüse / Gemüse Soße",100,110,140,0,null,null,"Gemüse / Gemüse Soße",100,110,140,0,null,null,"Gemüse / Gemüse Soße",100,110,140,0,null,null,"Gemüse / Gemüse Soße",100,120,140,0,null,null,"Gemüse / Gemüse Soße",100,130,140,0,null,null,"Gemüse / Gemüse Soße",100,110,140,0,null,null,"Gemüse / Gemüse Soße",100,110,140,0]
["Blatt, Misch, Gurke",34,50,80,0,null,null,"Blatt, Misch, Gurke",40,50,80,0,null,null,"Blatt, Misch, Gurke",40,50,80,0,null,null,"Blatt, Misch, Gurke",30,50,80,0,null,null,"Blatt, Misch, Gurke",40,50,80,0,null,null,"Blatt, Misch, Gurke",30,50,70,0,null,null,"Blatt, Misch, Gurke",30,50,80,0,null,null,"Blatt, Misch, Gurke",30,50,80,0]
["Salat-Dressing",30,50,{"$error":"#DIV/0!"},{"$error":"#DIV/0!"},null,null,"Salat-Dressing",30,50,null,null,null,null,"Salat-Dressing",30,50,null,null,null,null,"Salat-Dressing",30,50,null,null,null,null,"Salat-Dressing",30,50,null,null,null,null,"Salat-Dressing",30,40,null,null,null,null,"Salat-Dressing",30,50,null,null,null,null,"Salat-Dressing",30,50]
["Kartoffeln / Püree",166,184,200,3.4,null,null,"Kartoffeln / Püree",170,180,200,3,null,null,"Kartoffeln / Püree",170,180,200,3,null,null,"Kartoffeln / Püree",160,180,200,3,null,null,"Kartoffeln / Püree",160,180,200,3,null,null,"Kartoffeln / Püree",130,210,220,4,null,null,"Kartoffeln / Püree",170,200,200,4,null,null,"Kartoffeln / Püree",170,180,200,4]
["Nudeln / Reis",163,162,196,0,null,null,"Nudeln / Reis",150,140,180,0,null,null,"Nudeln / Reis",150,140,180,0,null,null,"Nudeln / Reis",165,170,200,0,null,null,"Nudeln / Reis",160,160,200,0,null,null,"Nudeln / Reis",180,190,200,0,null,null,"Nudeln / Reis",170,170,200,0,null,null,"Nudeln / Reis",170,170,200,0]
["Nachtisch / Eis",1,110,75,1,null,null,"Nachtisch / Eis",1,100,75,1,null,null,"Nachtisch / Eis",1,100,75,1,null,null,"Nachtisch / Eis",1,100,75,1,null,null,"Nachtisch / Eis",1,130,75,1,null,null,"Nachtisch / Eis",1,100,80,1,null,null,"Nachtisch / Eis",1,110,75,1,null,null,"Nachtisch / Eis",1,110,75,1]
["Nachtischsoße",30,{"$error":"#DIV/0!"},{"$error":"#DIV/0!"},10,null,null,"Nachtischsoße",30,null,null,10,null,null,"Nachtischsoße",30,null,null,10,null,null,"Nachtischsoße",30,null,null,10,null,null,"Nachtischsoße",30,null,null,10,null,null,"Nachtischsoße",30,null,null,10,null,null,"Nachtischsoße",30,null,null,10,null,null,"Nachtischsoße",30,null,null,10]
[0,{"$error":"#DIV/0!"},{"$error":"#DIV/0!"},{"$error":"#DIV/0!"},{"$error":"#DIV/0!"},null,null,0,null,null,null,null,null,null,0,null,null,null,null,null,null,0,null,null,null,null,null,null,0,null,null,null,null,null,null,0,null,null,null,null,null,null,0,null,null,null,null,null,null,0]
[]
["Hier keine Formeln verändern!",null,null,null,null,null,null,{"$f":"H70","v":"Liedbach"},null,null,null,null,null,null,{"$f":"O70","v":"OGS1"},null,null,null,null,null,null,{"$f":"V53","v":"OGS2"},null,null,null,null,null,null,{"$f":"AC53","v":"OGS3"},null,null,null,null,null,null,{"$f":"AJ70","v":"OGS4"},null,null,null,null,null,null,"Lünern",null,null,null,null,null,null,"Lünern2"]
[]
["Vegetarisch",1,2,3,4,null,null,"Vegetarisch",1,2,3,4,{"$f":"M55","v":{"$error":"#REF!"}},null,"Vegetarisch",1,2,3,4,{"$f":"T55","v":"1900-02-13"},null,"Vegetarisch",1,2,3,4,{"$f":"AA55","v":"1900-02-09"},null,"Vegetarisch",1,2,3,4,{"$f":"AH55","v":"1900-02-19"},null,"Vegetarisch",1,2,3,4,{"$f":"AO55","v":{"$error":"#REF!"}},null,"Vegetarisch",1,2,3,4,{"$f":"AV55","v":"1900-02-09"},null,"Vegetarisch",1,2,3,4,{"$f":"BC55","v":"1900-02-19"}]
[{"$f":"A73","v":"Suppe heiß / kalt"},{"$f":"AVERAGE(P90,W90,AD90,AR90,AY90)","v":120},{"$f":"AVERAGE(Q90,X90,AE90,AS90,AZ90)","v":120},{"$f":"AVERAGE(R90,Y90,AF90,AT90,BA90)","v":{"$error":"#DIV/0!"}},{"$f":"AVERAGE(S90,Z90,AG90,AU90,BB90)","v":{"$error":"#DIV/0!"}},null,null,{"$f":"H73","v":"Suppe heiß / kalt"},120,120,null,null,null,null,{"$f":"O73","v":"Suppe heiß / kalt"},120,120,null,null,null,null,{"$f":"V73","v":"Suppe heiß / kalt"},120,120,null,null,null,null,{"$f":"AC73","v":"Suppe heiß / kalt"},120,120,null,null,null,null,{"$f":"AJ73","v":"Suppe heiß / kalt"},120,120,null,null,null,null,{"$f":"AQ73","v":"Suppe heiß / kalt"},120,120,null,null,null,null,{"$f":"AX73","v":"Suppe heiß / kalt"},120,120]
["Vorspeise  Stck / Gramm",1,100,{"$error":"#DIV/0!"},{"$error":"#DIV/0!"},null,null,"Vorspeise  Stck / Gramm",1,100,null,null,null,null,"Vorspeise  Stck / Gramm",1,100,null,null,null,null,"Vorspeise  Stck / Gramm",1,100,null,null,null,null,"Vorspeise  Stck / Gramm",1,100,null,null,null,null,"Vorspeise  Stck / Gramm",1,100,null,null,null,null,"Vorspeise  Stck / Gramm",1,100,null,null,null,null,"Vorspeise  Stck / Gramm",1,100]
["Eintopf Gerne / Ungerne",264,304,290,{"$error":"#DIV/0!"},null,null,"Eintopf Gerne / Ungerne",220,210,250,null,null,null,"Eintopf Gerne / Ungerne",220,210,250,null,null,null,"Eintopf Gerne / Ungerne",240,320,350,null,null,null,"Eintopf Gerne / Ungerne",280,350,150,null,null,null,"Eintopf Gerne / Ungerne",240,350,380,null,null,null,"Eintopf Gerne / Ungerne",290,320,350,null,null,null,"Eintopf Gerne / Ungerne",290,320,350]
["Fleisch / Ragout",1,122,140,1.5,null,null,"Fleisch / Ragout",1,100,140,1.5,null,null,"Fleisch / Ragout",1,100,140,1.5,null,null,"Fleisch / Ragout",1,100,140,1.5,null,null,"Fleisch / Ragout",1,110,140,1.5,null,null,"Fleisch / Ragout",1,120,150,1.5,null,null,"Fleisch / Ragout",1,150,140,1.5,null,null,"Fleisch / Ragout",1,150,140,1.5]
["Soße / Soße Einlage",78,117,150,0,null,null,"Soße / Soße Einlage",70,125,150,0,null,null,"Soße / Soße Einlage",70,125,150,0,null,null,"Soße / Soße Einlage",70,120,150,0,null,null,"Soße / Soße Einlage",70,120,150,0,null,null,"Soße / Soße Einlage",60,120,170,0,null,null,"Soße / Soße Einlage",90,110,150,0,null,null,"Soße / Soße Einlage",90,110,150,0]
["Gemüse / Gemüse Soße",100,112,140,0,null,null,"Gemüse / Gemüse Soße",100,110,140,0,null,null,"Gemüse / Gemüse Soße",100,110,140,0,null,null,"Gemüse / Gemüse Soße",100,110,140,0,null,null,"Gemüse / Gemüse Soße",100,120,140,0,null,null,"Gemüse / Gemüse Soße",100,130,140,0,null,null,"Gemüse / Gemüse Soße",100,110,140,0,null,null,"Gemüse / Gemüse Soße",100,110,140,0]
["Blatt, Misch, Gurke",34,50,80,0,null,null,"Blatt, Misch, Gurke",40,50,80,0,null,null,"Blatt, Misch, Gurke",40,50,80,0,null,null,"Blatt, Misch, Gurke",30,50,80,0,null,null,"Blatt, Misch, Gurke",40,50,80,0,null,null,"Blatt, Misch, Gurke",30,50,70,0,null,null,"Blatt, Misch, Gurke",30,50,80,0,null,null,"Blatt, Misch, Gurke",30,50,80,0]
["Salat-Dressing",30,50,{"$error":"#DIV/0!"},{"$error":"#DIV/0!"},null,null,"Salat-Dressing",30,50,null,null,null,null,"Salat-Dressing",30,50,null,null,null,null,"Salat-Dressing",30,50,null,null,null,null,"Salat-Dressing",30,50,null,null,null,null,"Salat-Dressing",30,40,null,null,null,null,"Salat-Dressing",30,50,null,null,null,null,"Salat-Dressing",30,50]
["Kartoffeln / Püree",152,198,200,3.4,null,null,"Kartoffeln / Püree",130,200,200,3,null,null,"Kartoffeln / Püree",130,200,200,3,null,null,"Kartoffeln / Püree",130,190,200,3,null,null,"Kartoffeln / Püree",160,200,200,3,null,null,"Kartoffeln / Püree",130,210,220,4,null,null,"Kartoffeln / Püree",170,200,200,4,null,null,"Kartoffeln / Püree",170,200,200,4]
["Nudeln / Reis",163,162,196,0,null,null,"Nudeln / Reis",150,140,180,0,null,null,"Nudeln / Reis",150,140,180,0,null,null,"Nudeln / Reis",165,170,200,0,null,null,"Nudeln / Reis",160,160,200,0,null,null,"Nudeln / Reis",180,190,200,0,null,null,"Nudeln / Reis",170,170,200,0,null,null,"Nudeln / Reis",170,170,200,0]
["Nachtisch / Eis",1,110,75,1,null,null,"Nachtisch / Eis",1,100,75,1,null,null,"Nachtisch / Eis",1,100,75,1,null,null,"Nachtisch / Eis",1,100,75,1,null,null,"Nachtisch / Eis",1,130,75,1,null,null,"Nachtisch / Eis",1,100,80,1,null,null,"Nachtisch / Eis",1,110,75,1,null,null,"Nachtisch / Eis",1,110,75,1]
["Nachtischsoße",30,{"$error":"#DIV/0!"},{"$error":"#DIV/0!"},10,null,null,"Nachtischsoße",30,null,null,10,null,null,"Nachtischsoße",30,null,null,10,null,null,"Nachtischsoße",30,null,null,10,null,null,"Nachtischsoße",30,null,null,10,null,null,"Nachtischsoße",30,null,null,10,null,null,"Nachtischsoße",30,null,null,10,null,null,"Nachtischsoße",30,null,null,10]
[0,{"$error":"#DIV/0!"},{"$error":"#DIV/0!"},{"$error":"#DIV/0!"},{"$error":"#DIV/0!"},null,null,0,null,null,null,null,null,null,0,null,null,null,null,null,null,0,null,null,null,null,null,null,0,null,null,null,null,null,null,0,null,null,null,null,null,null,0,null,null,null,null,null,null,0]
[]
["Hier keine Formeln verändern!",null,null,null,null,null,null,null,null,null,null,null,null,null,null,null,null,null,null,null,null,null,null,null,null,null,null,null,"Dressing auf 30 g geändert am  28.05.2025 HK"]
[null,null,null,null,null,null,null,null,null,null,null,null,null,null,null,null,null,null,null,null,null,null,null,null,null,null,null,null,null,null,null,null,null,null,null,null,null,null,null,null,null,null,"Kartoffeln am 13.03.25 von 140 auf 160 g hochgesetzt",null,null,null,null,null,"HK"]
["Mittelwert  PGU _PWG",null,null,null,null,null,null,"PGU / PWG"]
["Hier keine Formeln verändern!"]
["Menü 1",1,2,3,4,null,null,"Menü 1",1,2,3,4,{"$f":"C95","v":"1900-04-21"}]
["Suppe heiß / kalt",{"$f":"AVERAGE(I109,P109,W109,AD109,AK109)","v":120},{"$f":"AVERAGE(J109,Q109,X109,AE109,AL109)","v":120},{"$error":"#DIV/0!"},{"$error":"#DIV/0!"},null,null,"Suppe heiß / kalt",120,120,null,null,null,null,"Liedbach Nudeln von 165 auf 150 runtergesetzt nach Anmerkung der Wirtschaferin",null,null,null,null,null,null,null,null,"am 21.05.2025",null,null,"HK"]
["Vorspeise  Stck / Gramm",{"$f":"AVERAGE(I110,P110,W110,AD110,AK110)","v":1},100,{"$error":"#DIV/0!"},{"$error":"#DIV/0!"},null,null,"Vorspeise  Stck / Gramm",1,100]
["Eintopf Gerne / Ungerne",250,200,150,{"$error":"#DIV/0!"},null,null,"Eintopf Gerne / Ungerne",250,200,150]
["Fleisch / Ragout",1,120,140,1.5,null,null,"Fleisch / Ragout",1,120,140,1.5]
["Soße / Soße Einlage",80,90,150,0,null,null,"Soße / Soße Einlage",80,90,150,0]
["Gemüse / Gemüse Soße",100,110,140,0,null,null,"Gemüse / Gemüse Soße",100,110,140,0]
["Blatt, Misch, Gurke",40,60,80,0,null,null,"Blatt, Misch, Gurke",40,60,80,0]
["Salat-Dressing",25,50,{"$error":"#DIV/0!"},{"$error":"#DIV/0!"},null,null,"Salat-Dressing",25,50]
["Kartoffeln / Püree",150,180,200,4,null,null,"Kartoffeln / Püree",150,180,200,4]
["Nudeln / Reis",160,160,200,0,null,null,"Nudeln / Reis",160,160,200,0]
["Nachtisch / Eis",1,110,75,150,null,null,"Nachtisch / Eis",1,110,75,150]
["Nachtischsoße",30,{"$error":"#DIV/0!"},{"$error":"#DIV/0!"},10,null,null,"Nachtischsoße",30,null,null,10]
[null,{"$error":"#DIV/0!"},{"$error":"#DIV/0!"},{"$error":"#DIV/0!"},{"$error":"#DIV/0!"}]
[]
["Hier keine Formeln verändern!"]
["Menü 2",1,2,3,4,null,null,"Menü 2",1,2,3,4,{"$f":"M108","v":"1900-04-21"}]
[{"$f":"A109","v":"Suppe heiß / kalt"},{"$f":"AVERAGE(I125,P125,W125,AD125,AK125)","v":120},120,{"$error":"#DIV/0!"},{"$error":"#DIV/0!"},null,null,{"$f":"H109","v":"Suppe heiß / kalt"},120,120]
["Vorspeise  Stck / Gramm",1,100,{"$error":"#DIV/0!"},{"$error":"#DIV/0!"},null,null,"Vorspeise  Stck / Gramm",1,100]
["Eintopf Gerne / Ungerne",250,200,150,{"$error":"#DIV/0!"},null,null,"Eintopf Gerne / Ungerne",250,200,150]
["Fleisch / Ragout",1,150,140,1.5,null,null,"Fleisch / Ragout",1,150,140,1.5]
["Soße / Soße Einlage",80,90,150,0,null,null,"Soße / Soße Einlage",80,90,150,0]
["Gemüse / Gemüse Soße",100,110,140,0,null,null,"Gemüse / Gemüse Soße",100,110,140,0]
["Blatt, Misch, Gurke",30,50,80,0,null,null,"Blatt, Misch, Gurke",30,50,80,0]
["Salat-Dressing",25,50,{"$error":"#DIV/0!"},{"$error":"#DIV/0!"},null,null,"Salat-Dressing",25,50]
["Kartoffeln / Püree",150,180,200,4,null,null,"Kartoffeln / Püree",150,180,200,4]
["Nudeln / Reis",140,160,200,0,null,null,"Nudeln / Reis",140,160,200,0]
["Nachtisch / Eis",1,110,75,150,null,null,"Nachtisch / Eis",1,110,75,150]
["Nachtischsoße",30,{"$error":"#DIV/0!"},{"$error":"#DIV/0!"},10,null,null,"Nachtischsoße",30,null,null,10]
[0,{"$error":"#DIV/0!"},{"$error":"#DIV/0!"},{"$error":"#DIV/0!"},{"$error":"#DIV/0!"},null,null,0]
[]
["Hier keine Formeln verändern!"]
["Vegetarisch",1,2,3,4,null,null,"Vegetarisch",1,2,3,4,{"$f":"M108","v":"1900-04-21"}]
[{"$f":"A125","v":"Suppe heiß / kalt"},{"$f":"AVERAGE(I141,P141,W141,AD141,AK141)","v":120},120,{"$error":"#DIV/0!"},{"$error":"#DIV/0!"},null,null,{"$f":"H125","v":"Suppe heiß / kalt"},120,120]
["Vorspeise  Stck / Gramm",1,100,{"$error":"#DIV/0!"},{"$error":"#DIV/0!"},null,null,"Vorspeise  Stck / Gramm",1,100]
["Eintopf Gerne / Ungerne",250,200,150,{"$error":"#DIV/0!"},null,null,"Eintopf Gerne / Ungerne",250,200,150]
["Fleisch / Ragout",1,150,140,1.5,null,null,"Fleisch / Ragout",1,150,140,1.5]
["Soße / Soße Einlage",80,90,150,0,null,null,"Soße / Soße Einlage",80,90,150,0]
["Gemüse / Gemüse Soße",100,110,140,0,null,null,"Gemüse / Gemüse Soße",100,110,140,0]
["Blatt, Misch, Gurke",30,50,80,0,null,null,"Blatt, Misch, Gurke",30,50,80,0]
["Salat-Dressing",25,50,{"$error":"#DIV/0!"},{"$error":"#DIV/0!"},null,null,"Salat-Dressing",25,50]
["Kartoffeln / Püree",150,180,200,4,null,null,"Kartoffeln / Püree",150,180,200,4]
["Nudeln / Reis",140,160,200,0,null,null,"Nudeln / Reis",140,160,200,0]
["Nachtisch / Eis",1,110,75,150,null,null,"Nachtisch / Eis",1,110,75,150]
["Nachtischsoße",30,{"$error":"#DIV/0!"},{"$error":"#DIV/0!"},10,null,null,"Nachtischsoße",30,null,null,10]
[0,{"$error":"#DIV/0!"},{"$error":"#DIV/0!"},{"$error":"#DIV/0!"},{"$error":"#DIV/0!"},null,null,0]